fUSD/lending_fUSD_20260612
["ID","MTS","AMOUNT","RATE_DAILY","PERIOD"]
[424901723,1781257859000,-262.928167,0.00029,7]
[424901753,1781257860000,-304.91695094,0.00029618,7]
[424901758,1781257860000,-327.63080411,0.00029619,7]
[424901760,1781257860000,-207.72592289,0.00029619,5]
[424901759,1781257860000,-643.56489674,0.00029619,7]
[424901756,1781257860000,-565.93767048,0.00029619,7]
[424901755,1781257860000,-151.94695434,0.00029618,7]
[424901749,1781257860000,-226.29,0.000296,7]
[424901754,1781257860000,-523.01073549,0.00029618,7]
[424901751,1781257860000,-480.04334802,0.00029618,7]
[424901746,1781257860000,-261.0,0.00029454,2]
[424901750,1781257860000,-191.04034605,0.00029618,7]
[424901747,1781257860000,-3013.27,0.000295,30]
[424901748,1781257860000,-505.0,0.00029573,12]
[424901757,1781257860000,-494.38323126,0.00029619,7]
[424901745,1781257860000,-185.0,0.00029395,2]
[424901743,1781257860000,-175.0,0.00029259,30]
[424901744,1781257860000,-150.0,0.00029372,2]
[424901742,1781257860000,-376.0,0.00029254,30]
[424901741,1781257860000,-167.0,0.00029254,30]
[424901752,1781257860000,-581.60659053,0.00029618,7]
[424901762,1781257860000,-591.53157008,0.00029619,2]
[424901779,1781257860000,-734.72922178,0.00029699,2]
[424901763,1781257860000,-450.73978428,0.00029619,7]
[424901784,1781257860000,-8495.97966173,0.000299,2]
[424901780,1781257860000,-315.87750022,0.00029699,2]
[424901778,1781257860000,-168.113278,0.00013424,2]
[424901783,1781257860000,-172.72502456,0.00029896,7]
[424901782,1781257860000,-4052.7,0.00029865,2]
[424901776,1781257860000,-1275.0,0.00029699,2]
[424901773,1781257860000,-1000.0,0.00029677,2]
[424901775,1781257860000,-234.97517178,0.00029699,2]
[424901774,1781257860000,-147.02482822,0.00029699,2]
[424901781,1781257860000,-5760.12249978,0.00029699,2]
[424901772,1781257860000,-558.86811129,0.00029629,7]
[424901777,1781257860000,-198.27077822,0.00029699,2]
[424901764,1781257860000,-486.51276316,0.00029619,7]
[424901766,1781257860000,-198.89317545,0.0002962,7]
[424901765,1781257860000,-236.57814007,0.0002962,7]
[424901761,1781257860000,-380.64565347,0.00029619,7]
[424901767,1781257860000,-247.42429171,0.0002962,7]
[424901768,1781257860000,-242.81820882,0.0002962,7]
[424901770,1781257860000,-205.40773364,0.0002962,7]
[424901771,1781257860000,-468.07970267,0.0002962,7]
[424901769,1781257860000,-213.66750967,0.0002962,7]
[424901786,1781257861000,-139.1927653,0.000299,2]
[424901785,1781257861000,-151.0,0.00023646,2]
[424901788,1781257861000,-946.14500548,0.000299,2]
[424901789,1781257861000,-1950.797122,0.000299,2]
[424901787,1781257861000,-419.0,0.00014699,2]
[424901791,1781257906000,-500.0,0.00011428,2]
[424901792,1781257961000,-531.9696152,0.00011428,2]
[424901795,1781258013000,-160.0,0.00011428,2]
[424901797,1781258067000,-500.0,0.00011429,2]
[424901799,1781258113000,-500.0,0.00011429,2]
[424901800,1781258166000,-500.0,0.00011429,2]
[424901801,1781258219000,-500.0,0.00011429,2]
[424901808,1781258273000,-214.24,0.00010301,2]
[424901809,1781258326000,-150.0,0.0001143,2]
[424901815,1781258380000,-160.0,0.00011434,2]
[424901817,1781258424000,155.57029809,0.00016438,30]
[424901818,1781258424000,155.57029809,0.00016438,30]
[424901819,1781258441000,155.57029809,0.00016438,30]
[424901820,1781258441000,155.57029809,0.00016438,30]
[424901821,1781258458000,155.57029809,0.00016438,30]
[424901822,1781258528000,-160.0,0.00011439,2]
[424901824,1781258582000,-150.0,0.00011828,2]
[424901829,1781258635000,-150.02,0.00011828,2]
[424901830,1781258689000,-150.0,0.00012043,2]
[424901833,1781258742000,-150.0,0.00012043,2]
[424901834,1781258795000,-151.0,0.00012043,2]
[424901835,1781258849000,-150.0,0.00012043,2]
[424901839,1781258902000,-151.0,0.00012043,2]
[424901840,1781258955000,-795.0298741,0.00011994,2]
[424901841,1781258976000,-204.9701259,0.00011994,2]
[424901862,1781259033000,-150.0,0.00012043,2]
[424901860,1781259033000,-151.0,0.00012043,2]
[424901858,1781259033000,-151.0,0.00012043,2]
[424901861,1781259033000,-152.0,0.00012043,2]
[424901863,1781259033000,-151.0,0.00012043,2]
[424901869,1781259033000,-150.0,0.00012386,2]
[424901865,1781259033000,-570.4,0.0001224,2]
[424901871,1781259033000,-500.0,0.00012386,2]
[424901868,1781259033000,-173.48,0.00012346,2]
[424901874,1781259033000,-302.57746594,0.00012386,2]
[424901857,1781259033000,-152.0,0.00012043,2]
[424901864,1781259033000,-150.0,0.00012215,2]
[424901859,1781259033000,-151.0,0.00012043,2]
[424901851,1781259033000,-151.0,0.00012043,2]
[424901855,1781259033000,-151.0,0.00012043,2]
[424901854,1781259033000,-151.0,0.00012043,2]
[424901853,1781259033000,-298.0,0.00012043,2]
[424901852,1781259033000,-153.0,0.00012043,2]
[424901872,1781259033000,-500.0,0.00012386,2]
[424901849,1781259033000,-151.0,0.00012043,2]
[424901850,1781259033000,-153.0,0.00012043,2]
[424901847,1781259033000,-150.0,0.00012043,2]
[424901848,1781259033000,-151.0,0.00012043,2]
[424901846,1781259033000,-151.0,0.00012043,2]
[424901845,1781259033000,-152.0,0.00012043,2]
[424901844,1781259033000,-150.0,0.00012043,2]
[424901856,1781259033000,-151.0,0.00012043,2]
[424901870,1781259033000,-500.0,0.00012386,2]
[424901881,1781259033000,-4999.99,0.00012387,2]
[424901867,1781259033000,-152.25,0.00012329,2]
[424901873,1781259033000,-500.0,0.00012386,2]
[424901904,1781259033000,-2735.05985006,0.00012605,2]
[424901902,1781259033000,-818.35060492,0.00012595,2]
[424901905,1781259033000,-860811.24542949,0.00012605,2]
[424901903,1781259033000,-178.91034135,0.00012604,2]
[424901898,1781259033000,-166.66,0.00012399,2]
[424901901,1781259033000,-150.0,0.00012592,2]
[424901899,1781259033000,-500.0,0.00012496,2]
[424901906,1781259033000,-37935.53920136,0.00012605,2]
[424901897,1781259033000,-3043.12,0.00012389,2]
[424901896,1781259033000,-9999.99,0.00012387,2]
[424901893,1781259033000,-498.89387459,0.00012387,2]
[424901894,1781259033000,-812.4160277,0.00012387,2]
[424901895,1781259033000,-18766.56,0.00012387,2]
[424901900,1781259033000,-1632.89,0.00012533,2]
[424901884,1781259033000,-1903.58398789,0.00012387,2]
[424901875,1781259033000,-192.68598866,0.00012386,2]
[424901882,1781259033000,-299.99,0.00012387,2]
[424901866,1781259033000,-1244.57,0.00012262,2]
[424901877,1781259033000,-10400.74950811,0.00012387,2]
[424901887,1781259033000,-8096.40601211,0.00012387,2]
[424901890,1781259033000,-1201.53009771,0.00012387,2]
[424901888,1781259033000,-1032.77,0.00012387,2]
[424901879,1781259033000,-1982.83,0.00012387,2]
[424901878,1781259033000,-999.99,0.00012387,2]
[424901880,1781259033000,-150.99,0.00012387,2]
[424901883,1781259033000,-8224.61,0.00012387,2]
[424901876,1781259033000,-359.08166899,0.00012386,2]
[424901907,1781259034000,-364.23786313,0.00012605,2]
[424901968,1781259038000,-451.0,0.00013094,2]
[424901971,1781259038000,-226.8123678,0.00013247,2]
[424901970,1781259038000,-564.96724461,0.00013247,2]
[424901975,1781259038000,-323.8262812,0.00013293,2]
[424901972,1781259038000,-250.0,0.00013247,2]
[424901967,1781259038000,-441.0,0.00013094,2]
[424901978,1781259038000,-3043.12,0.00013318,2]
[424901998,1781259038000,-1069.14,0.00013655,2]
[424901987,1781259038000,-205.5802145,0.00013559,2]
[424901982,1781259038000,-255.0,0.00013476,2]
[424901980,1781259038000,-166.66,0.00013443,2]
[424901984,1781259038000,-1000.0,0.000135,2]
[424901989,1781259038000,-6822.3702,0.00013599,2]
[424901969,1781259038000,-166.66,0.00013182,2]
[424901973,1781259038000,-500.0,0.00013247,2]
[424901966,1781259038000,-444.0,0.00013094,2]
[424901952,1781259038000,-167.54,0.0001263,2]
[424901964,1781259038000,-433.73144724,0.00013,2]
[424901995,1781259038000,-3043.12,0.00013628,2]
[424901948,1781259038000,-4.97803389,0.00012605,2]
[424901949,1781259038000,-341.50517263,0.00012605,2]
[424901957,1781259038000,-2000.0,0.00012705,2]
[424901953,1781259038000,-166.66,0.0001266,2]
[424901955,1781259038000,-286.07,0.00012705,2]
[424901950,1781259038000,-1314.70254899,0.00012605,2]
[424901954,1781259038000,-3043.12,0.00012699,2]
[424901958,1781259038000,-200.0,0.000128,4]
[424901951,1781259038000,-1599227.79175051,0.00012605,2]
[424901959,1781259038000,-818.35060492,0.00012811,2]
[424901961,1781259038000,-400.0,0.000129,4]
[424901960,1781259038000,-1500000.0,0.00012821,2]
[424901962,1781259038000,-166.66,0.00012921,2]
[424901963,1781259038000,-1601.13316532,0.00013,2]
[424901965,1781259038000,-3043.12,0.00013009,2]
[424902005,1781259038000,-520.28473035,0.00013698,2]
[424902023,1781259038000,-500.0,0.00013698,2]
[424901991,1781259038000,-2500.0,0.00013599,2]
[424902030,1781259038000,-500.0,0.00013698,2]
[424902020,1781259038000,-500.0,0.00013698,2]
[424902019,1781259038000,-500.0,0.00013698,2]
[424902028,1781259038000,-500.0,0.00013698,2]
[424902026,1781259038000,-500.0,0.00013698,2]
[424902025,1781259038000,-500.0,0.00013698,2]
[424902024,1781259038000,-500.0,0.00013698,2]
[424902029,1781259038000,-500.0,0.00013698,2]
[424902036,1781259038000,-162.96,0.00013699,2]
[424902027,1781259038000,-621.59,0.00013698,2]
[424902032,1781259038000,-281.6,0.00013699,2]
[424902033,1781259038000,-234.66,0.00013699,2]
[424902035,1781259038000,-200.0,0.00013699,2]
[424902034,1781259038000,-195.55,0.00013699,2]
[424902002,1781259038000,-345.71,0.00013684,2]
[424902022,1781259038000,-500.0,0.00013698,2]
[424902021,1781259038000,-500.0,0.00013698,2]
[424902031,1781259038000,-337.92,0.00013699,2]
[424902011,1781259038000,-500.0,0.00013698,2]
[424902000,1781259038000,-150.0,0.00013671,2]
[424902014,1781259038000,-500.0,0.00013698,2]
[424902003,1781259038000,-502.39573893,0.00013698,2]
[424901993,1781259038000,-473.95127196,0.00013599,2]
[424902004,1781259038000,-500.0,0.00013698,2]
[424902008,1781259038000,-500.0,0.00013698,2]
[424902009,1781259038000,-500.0,0.00013698,2]
[424902006,1781259038000,-500.0,0.00013698,2]
[424902016,1781259038000,-500.0,0.00013698,2]
[424902015,1781259038000,-500.0,0.00013698,2]
[424902010,1781259038000,-500.0,0.00013698,2]
[424902017,1781259038000,-500.0,0.00013698,2]
[424902012,1781259038000,-500.0,0.00013698,2]
[424902018,1781259038000,-481.23,0.00013698,2]
[424902007,1781259038000,-500.0,0.00013698,2]
[424902013,1781259038000,-500.0,0.00013698,2]
[424902074,1781259039000,-500.0,0.00013699,2]
[424902071,1781259039000,-500.0,0.00013699,2]
[424902073,1781259039000,-500.0,0.00013699,2]
[424902068,1781259039000,-500.0,0.00013699,2]
[424902069,1781259039000,-500.0,0.00013699,2]
[424902067,1781259039000,-500.0,0.00013699,2]
[424902066,1781259039000,-500.0,0.00013699,2]
[424902072,1781259039000,-500.0,0.00013699,2]
[424902064,1781259039000,-500.0,0.00013699,2]
[424902070,1781259039000,-500.0,0.00013699,2]
[424902075,1781259039000,-500.0,0.00013699,2]
[424902080,1781259039000,-500.0,0.00013699,2]
[424902077,1781259039000,-500.0,0.00013699,2]
[424902078,1781259039000,-500.0,0.00013699,2]
[424902081,1781259039000,-500.0,0.00013699,2]
[424902085,1781259039000,-500.0,0.00013699,2]
[424902076,1781259039000,-500.0,0.00013699,2]
[424902083,1781259039000,-500.0,0.00013699,2]
[424902084,1781259039000,-500.0,0.00013699,2]
[424902082,1781259039000,-500.0,0.00013699,2]
[424902087,1781259039000,-500.0,0.00013699,2]
[424902086,1781259039000,-500.0,0.00013699,2]
[424902065,1781259039000,-500.0,0.00013699,2]
[424902079,1781259039000,-500.0,0.00013699,2]
[424902060,1781259039000,-500.0,0.00013699,2]
[424902050,1781259039000,-500.0,0.00013699,2]
[424902057,1781259039000,-500.0,0.00013699,2]
[424902091,1781259039000,-500.0,0.00013699,2]
[424902042,1781259039000,-500.0,0.00013699,2]
[424902039,1781259039000,-500.0,0.00013699,2]
[424902041,1781259039000,-500.0,0.00013699,2]
[424902040,1781259039000,-500.0,0.00013699,2]
[424902038,1781259039000,-2500.0,0.00013699,2]
[424902037,1781259039000,-814.83,0.00013699,2]
[424902043,1781259039000,-500.0,0.00013699,2]
[424902044,1781259039000,-500.0,0.00013699,2]
[424902052,1781259039000,-500.0,0.00013699,2]
[424902051,1781259039000,-500.0,0.00013699,2]
[424902063,1781259039000,-500.0,0.00013699,2]
[424902053,1781259039000,-500.0,0.00013699,2]
[424902049,1781259039000,-500.0,0.00013699,2]
[424902048,1781259039000,-500.0,0.00013699,2]
[424902046,1781259039000,-500.0,0.00013699,2]
[424902047,1781259039000,-500.0,0.00013699,2]
[424902055,1781259039000,-500.0,0.00013699,2]
[424902054,1781259039000,-500.0,0.00013699,2]
[424902058,1781259039000,-500.0,0.00013699,2]
[424902062,1781259039000,-500.0,0.00013699,2]
[424902056,1781259039000,-500.0,0.00013699,2]
[424902061,1781259039000,-500.0,0.00013699,2]
[424902059,1781259039000,-500.0,0.00013699,2]
[424902045,1781259039000,-500.0,0.00013699,2]
[424902089,1781259039000,-500.0,0.00013699,2]
[424902094,1781259039000,-500.0,0.00013699,2]
[424902090,1781259039000,-500.0,0.00013699,2]
[424902130,1781259039000,-22286.25,0.00013699,2]
[424902126,1781259039000,-940.20151226,0.00013699,2]
[424902120,1781259039000,-940.20151226,0.00013699,2]
[424902125,1781259039000,-940.20151226,0.00013699,2]
[424902119,1781259039000,-940.20151226,0.00013699,2]
[424902122,1781259039000,-940.20151226,0.00013699,2]
[424902128,1781259039000,-940.20151226,0.00013699,2]
[424902121,1781259039000,-940.20151226,0.00013699,2]
[424902129,1781259039000,-940.20151214,0.00013699,2]
[424902132,1781259039000,-150.0,0.000137,2]
[424902134,1781259039000,-150.0,0.000137,2]
[424902123,1781259039000,-940.20151226,0.00013699,2]
[424902133,1781259039000,-150.0,0.000137,2]
[424902141,1781259039000,-570.4,0.0001377,2]
[424902136,1781259039000,-163.69,0.000137,2]
[424902137,1781259039000,-166.66,0.00013704,2]
[424902138,1781259039000,-24079.45138571,0.00013729,2]
[424902139,1781259039000,-473.95127191,0.00013744,2]
[424902135,1781259039000,-278.72170502,0.000137,2]
[424902142,1781259039000,-2514.34840753,0.00013855,2]
[424902144,1781259039000,-1069.14,0.00013898,2]
[424902145,1781259039000,-744.52321197,0.000139,2]
[424902143,1781259039000,-473.95127191,0.00013888,2]
[424902088,1781259039000,-500.0,0.00013699,2]
[424902140,1781259039000,-2735.05985006,0.00013753,2]
[424902127,1781259039000,-940.20151226,0.00013699,2]
[424902131,1781259039000,-150.0,0.000137,2]
[424902117,1781259039000,-940.20151226,0.00013699,2]
[424902092,1781259039000,-500.0,0.00013699,2]
[424902116,1781259039000,-940.20151226,0.00013699,2]
[424902093,1781259039000,-500.0,0.00013699,2]
[424902095,1781259039000,-500.0,0.00013699,2]
[424902096,1781259039000,-500.0,0.00013699,2]
[424902097,1781259039000,-940.20151226,0.00013699,2]
[424902099,1781259039000,-940.20151226,0.00013699,2]
[424902100,1781259039000,-940.20151226,0.00013699,2]
[424902101,1781259039000,-940.20151226,0.00013699,2]
[424902102,1781259039000,-940.20151226,0.00013699,2]
[424902103,1781259039000,-940.20151226,0.00013699,2]
[424902104,1781259039000,-940.20151226,0.00013699,2]
[424902098,1781259039000,-940.20151226,0.00013699,2]
[424902107,1781259039000,-940.20151226,0.00013699,2]
[424902118,1781259039000,-940.20151226,0.00013699,2]
[424902105,1781259039000,-940.20151226,0.00013699,2]
[424902115,1781259039000,-940.20151226,0.00013699,2]
[424902114,1781259039000,-940.20151226,0.00013699,2]
[424902112,1781259039000,-940.20151226,0.00013699,2]
[424902108,1781259039000,-940.20151226,0.00013699,2]
[424902113,1781259039000,-940.20151226,0.00013699,2]
[424902110,1781259039000,-940.20151226,0.00013699,2]
[424902109,1781259039000,-940.20151226,0.00013699,2]
[424902106,1781259039000,-940.20151226,0.00013699,2]
[424902111,1781259039000,-940.20151226,0.00013699,2]
[424902178,1781259040000,-500.0,0.00014177,2]
[424902186,1781259040000,-500.0,0.00014177,2]
[424902175,1781259040000,-744.52321194,0.00014122,2]
[424902187,1781259040000,-500.0,0.00014177,2]
[424902181,1781259040000,-614.41645061,0.00014177,2]
[424902176,1781259040000,-1069.14,0.00014141,2]
[424902179,1781259040000,-500.0,0.00014177,2]
[424902180,1781259040000,-500.0,0.00014177,2]
[424902182,1781259040000,-500.0,0.00014177,2]
[424902177,1781259040000,-301.97830026,0.00014153,2]
[424902185,1781259040000,-500.0,0.00014177,2]
[424902197,1781259040000,-500.0,0.00014177,2]
[424902183,1781259040000,-500.0,0.00014177,2]
[424902188,1781259040000,-500.0,0.00014177,2]
[424902191,1781259040000,-500.0,0.00014177,2]
[424902189,1781259040000,-336.21909563,0.00014177,2]
[424902190,1781259040000,-500.0,0.00014177,2]
[424902192,1781259040000,-500.0,0.00014177,2]
[424902193,1781259040000,-500.0,0.00014177,2]
[424902196,1781259040000,-500.0,0.00014177,2]
[424902195,1781259040000,-500.0,0.00014177,2]
[424902198,1781259040000,-500.0,0.00014177,2]
[424902174,1781259040000,-1037.05,0.00014105,2]
[424902184,1781259040000,-500.0,0.00014177,2]
[424902167,1781259040000,-1069.14,0.00013999,2]
[424902147,1781259040000,-500.0,0.0001391,2]
[424902170,1781259040000,-473.95127191,0.00014033,2]
[424902202,1781259040000,-1069.14,0.00014199,2]
[424902148,1781259040000,-1783.95,0.0001391,2]
[424902151,1781259040000,-500.0,0.0001391,2]
[424902149,1781259040000,-1783.95,0.0001391,2]
[424902146,1781259040000,-600.0,0.000139,5]
[424902152,1781259040000,-500.0,0.0001391,2]
[424902150,1781259040000,-500.0,0.0001391,2]
[424902153,1781259040000,-500.0,0.0001391,2]
[424902159,1781259040000,-500.0,0.0001391,2]
[424902160,1781259040000,-500.0,0.0001391,2]
[424902158,1781259040000,-172.1676913,0.0001391,2]
[424902161,1781259040000,-455181.0169044,0.00013911,2]
[424902163,1781259040000,-2000.0,0.00013937,2]
[424902162,1781259040000,-500.0,0.00013937,2]
[424902157,1781259040000,-500.0,0.0001391,2]
[424902154,1781259040000,-500.0,0.0001391,2]
[424902156,1781259040000,-500.0,0.0001391,2]
[424902155,1781259040000,-500.0,0.0001391,2]
[424902164,1781259040000,-500.0,0.00013973,2]
[424902166,1781259040000,-32444.69653564,0.0001399,2]
[424902172,1781259040000,-1632.89,0.00014099,2]
[424902171,1781259040000,-1069.14,0.00014076,2]
[424902173,1781259040000,-300.0,0.000141,5]
[424902165,1781259040000,-2005.94132076,0.00013973,2]
[424902168,1781259040000,-250.0,0.00014,2]
[424902169,1781259040000,-744.52321194,0.00014011,2]
[424902206,1781259040000,-744.52321194,0.00014233,2]
[424902194,1781259040000,-500.0,0.00014177,2]
[424902201,1781259040000,-473.95127191,0.00014177,2]
[424902233,1781259040000,-300.0,0.000146,5]
[424902232,1781259040000,-1069.14,0.00014596,2]
[424902240,1781259040000,-744.52321194,0.00014678,2]
[424902241,1781259040000,-1069.14,0.00014686,2]
[424902243,1781259040000,-164.202894,0.000147,2]
[424902235,1781259040000,-473.95127191,0.00014611,2]
[424902234,1781259040000,-200.0,0.000146,5]
[424902242,1781259040000,-206.662731,0.000147,2]
[424902236,1781259040000,-1069.14,0.00014627,2]
[424902239,1781259040000,-433.0,0.00014665,2]
[424902238,1781259040000,-1069.14,0.00014657,2]
[424902226,1781259040000,-1600.0,0.000145,5]
[424902244,1781259040000,-300.0,0.000147,5]
[424902250,1781259040000,-1069.14,0.00014742,2]
[424902248,1781259040000,-1069.14,0.00014714,2]
[424902251,1781259040000,-473.95127191,0.00014755,2]
[424902252,1781259040000,-1069.14,0.00014769,2]
[424902247,1781259040000,-167.54,0.00014714,2]
[424902249,1781259040000,-1037.05,0.00014734,2]
[424902246,1781259040000,-345.71,0.00014702,2]
[424902253,1781259040000,-394.0,0.0001477,2]
[424902254,1781259040000,-744.52321194,0.00014789,2]
[424902255,1781259040000,-1069.14,0.00014795,2]
[424902203,1781259040000,-600.0,0.000142,5]
[424902245,1781259040000,-200.0,0.000147,5]
[424902231,1781259040000,-744.52321194,0.00014567,2]
[424902237,1781259040000,-1037.05,0.00014642,2]
[424902227,1781259040000,-1000.0,0.000145,5]
[424902199,1781259040000,-500.0,0.00014177,2]
[424902222,1781259040000,-744.52321194,0.00014456,2]
[424902204,1781259040000,-277.823698,0.0001421,2]
[424902205,1781259040000,-486.015079,0.0001421,2]
[424902208,1781259040000,-1069.14,0.0001425,2]
[424902207,1781259040000,-196.136323,0.00014248,2]
[424902200,1781259040000,-235.71588977,0.00014177,2]
[424902209,1781259040000,-416.160618,0.00014276,2]
[424902214,1781259040000,-473.95127191,0.00014322,2]
[424902210,1781259040000,-1037.05,0.00014285,2]
[424902213,1781259040000,-900.0,0.000143,5]
[424902217,1781259040000,-1069.14,0.00014384,2]
[424902220,1781259040000,-1037.05,0.00014423,2]
[424902212,1781259040000,-1069.14,0.00014298,2]
[424902228,1781259040000,-1069.14,0.00014531,2]
[424902216,1781259040000,-744.52321194,0.00014344,2]
[424902215,1781259040000,-1069.14,0.00014343,2]
[424902219,1781259040000,-800.0,0.000144,5]
[424902218,1781259040000,-1300.0,0.000144,5]
[424902221,1781259040000,-1069.14,0.00014424,2]
[424902229,1781259040000,-1037.05,0.00014539,2]
[424902225,1781259040000,-1069.14,0.00014497,2]
[424902223,1781259040000,-1069.14,0.00014461,2]
[424902224,1781259040000,-473.95127191,0.00014466,2]
[424902211,1781259040000,-1433.43741035,0.00014295,2]
[424902230,1781259040000,-1069.14,0.00014564,2]
[424902270,1781259041000,-1083.87962281,0.00014883,2]
[424902273,1781259041000,-1783.95,0.00014899,2]
[424902268,1781259041000,-1083.87962281,0.00014867,2]
[424902272,1781259041000,-1037.05,0.00014899,2]
[424902279,1781259041000,-500.0,0.00014899,2]
[424902278,1781259041000,-500.0,0.00014899,2]
[424902277,1781259041000,-500.0,0.00014899,2]
[424902275,1781259041000,-500.0,0.00014899,2]
[424902274,1781259041000,-500.0,0.00014899,2]
[424902271,1781259041000,-1069.14,0.00014894,2]
[424902276,1781259041000,-500.0,0.00014899,2]
[424902269,1781259041000,-1069.14,0.0001487,2]
[424902262,1781259041000,-1069.14,0.00014821,2]
[424902265,1781259041000,-1069.14,0.00014846,2]
[424902266,1781259041000,-1083.87962281,0.0001485,2]
[424902264,1781259041000,-1083.87962281,0.00014833,2]
[424902256,1781259041000,-1083.87962284,0.000148,2]
[424902257,1781259041000,-300.0,0.000148,5]
[424902260,1781259041000,-1083.87962281,0.00014817,2]
[424902261,1781259041000,-1037.05,0.00014819,2]
[424902259,1781259041000,-491.0,0.00014813,2]
[424902258,1781259041000,-200.0,0.000148,5]
[424902263,1781259041000,-294.0,0.00014832,2]
[424902282,1781259041000,-186.21310382,0.000149,2]
[424902267,1781259041000,-491.0,0.00014861,2]
[424902281,1781259041000,-10831.59005543,0.000149,2]
[424902303,1781259041000,-500.0,0.00014988,2]
[424902283,1781259041000,-473.95127191,0.000149,2]
[424902308,1781259041000,-637.96,0.00014999,5]
[424902309,1781259041000,-1783.95,0.00014999,2]
[424902304,1781259041000,-500.0,0.00014988,2]
[424902307,1781259041000,-818.35060492,0.0001499,2]
[424902306,1781259041000,-189.163917,0.00014989,2]
[424902305,1781259041000,-115976.93829048,0.00014989,2]
[424902284,1781259041000,-1083.87962281,0.000149,2]
[424902301,1781259041000,-500.0,0.00014988,2]
[424902300,1781259041000,-1783.95,0.00014988,2]
[424902299,1781259041000,-1069.14,0.00014986,2]
[424902296,1781259041000,-1037.05,0.00014973,2]
[424902293,1781259041000,-1069.14,0.00014941,2]
[424902302,1781259041000,-500.0,0.00014988,2]
[424902295,1781259041000,-1069.14,0.00014964,2]
[424902298,1781259041000,-491.0,0.00014982,2]
[424902280,1781259041000,-243055.43520343,0.000149,3]
[424902286,1781259041000,-744.52321194,0.000149,2]
[424902285,1781259041000,-300.0,0.000149,5]
[424902289,1781259041000,-2735.05985006,0.000149,2]
[424902288,1781259041000,-200.0,0.000149,5]
[424902291,1781259041000,-1069.14,0.00014918,2]
[424902290,1781259041000,-291.6690779,0.00014908,2]
[424902292,1781259041000,-332.53545594,0.00014927,2]
[424902294,1781259041000,-491.0,0.00014959,2]
[424902297,1781259041000,-294.0,0.00014981,2]
[424902287,1781259041000,-469.42,0.000149,2]
[424902329,1781259042000,-500.0,0.00014999,2]
[424902327,1781259042000,-1783.95,0.00014999,2]
[424902337,1781259042000,-500.0,0.00014999,2]
[424902331,1781259042000,-500.0,0.00014999,2]
[424902330,1781259042000,-500.0,0.00014999,2]
[424902338,1781259042000,-500.0,0.00014999,2]
[424902333,1781259042000,-500.0,0.00014999,2]
[424902323,1781259042000,-1783.95,0.00014999,2]
[424902336,1781259042000,-457.12873569,0.00014999,2]
[424902335,1781259042000,-556.76587923,0.00014999,2]
[424902334,1781259042000,-500.0,0.00014999,2]
[424902328,1781259042000,-1784.11440091,0.00014999,2]
[424902325,1781259042000,-1783.95,0.00014999,2]
[424902326,1781259042000,-1783.95,0.00014999,2]
[424902322,1781259042000,-1783.95,0.00014999,2]
[424902321,1781259042000,-1783.95,0.00014999,2]
[424902324,1781259042000,-1783.95,0.00014999,2]
[424902319,1781259042000,-1783.95,0.00014999,2]
[424902318,1781259042000,-1783.95,0.00014999,2]
[424902315,1781259042000,-1783.95,0.00014999,2]
[424902314,1781259042000,-1783.95,0.00014999,2]
[424902313,1781259042000,-1783.95,0.00014999,2]